bitfinex-derivatives/quotes_BTCF0:USTF0_20240907
["timestamp","ask_amount","ask_price","bid_price","bid_amount"]
[1725737332695,0.014,54403.0,54402.0,0.22600763]
[1725737334291,0.07042223,54403.0,54402.0,0.22600763]
[1725737335593,0.014,54403.0,54402.0,0.22600763]
[1725737335993,0.07042225,54403.0,54402.0,0.22600763]
[1725737336292,0.21582607,54403.0,54402.0,0.22600763]
[1725737336484,0.27226228,54403.0,54402.0,0.22600763]
[1725737336794,0.07042147,54403.0,54402.0,0.22600763]
[1725737339394,0.2722615,54403.0,54402.0,0.22600763]
[1725737339990,0.07042147,54403.0,54402.0,0.22600763]
[1725737340393,0.2722615,54403.0,54402.0,0.22600763]
[1725737340595,0.07042149,54403.0,54402.0,0.22600763]
[1725737341397,0.014,54403.0,54402.0,0.22600763]
[1725737343799,0.014,54403.0,54402.0,0.001]
[1725737344292,0.105911,54403.0,54402.0,0.001]
[1725737345901,0.105911,54403.0,54402.0,0.03489743]
[1725737346097,0.205911,54403.0,54402.0,0.001]
[1725737347598,0.206911,54403.0,54402.0,0.001]
[1725737347794,0.106911,54403.0,54402.0,0.092912]
[1725737347990,0.094911,54403.0,54402.0,0.091912]
[1725737348998,0.093911,54403.0,54402.0,0.091912]
[1725737349201,0.095911,54403.0,54402.0,0.091912]
[1725737349403,0.2087555,54403.0,54402.0,0.091912]
[1725737349600,0.2067555,54403.0,54402.0,0.091912]
[1725737349797,0.2107555,54403.0,54402.0,0.091912]
[1725737350503,0.2087555,54403.0,54402.0,0.091912]
[1725737350703,0.2157555,54403.0,54402.0,0.092912]
[1725737351102,0.2157555,54403.0,54402.0,0.1261342]
[1725737351405,0.2137555,54403.0,54402.0,0.1251342]
[1725737351998,0.41602532,54403.0,54402.0,0.1251342]
[1725737352303,0.2137555,54403.0,54402.0,0.1251342]
[1725737353901,0.15733325,54403.0,54402.0,0.1251342]
[1725737355194,0.35960811,54403.0,54402.0,0.1251342]
[1725737356396,0.30318586,54403.0,54402.0,0.1251342]
[1725737356601,0.100911,54403.0,54402.0,0.1251342]
[1725737361004,0.100911,54403.0,54402.0,0.091912]
[1725737361710,0.091921,54397.0,54396.0,0.091922]
[1725737362416,0.138821,54397.0,54396.0,0.091922]
[1725737362709,0.091924,54395.0,54394.0,0.03375804]
[1725737362909,0.187924,54395.0,54394.0,0.091926]
[1725737363706,0.186924,54395.0,54394.0,0.091926]
[1725737364107,0.191924,54395.0,54394.0,0.091926]
[1725737364615,0.22119764,54395.0,54394.0,0.091926]
[1725737364811,0.191924,54395.0,54394.0,0.091926]
[1725737365203,0.194924,54395.0,54394.0,0.091926]
[1725737371518,0.25135159,54395.0,54394.0,0.091926]
[1725737373320,0.43512237,54395.0,54394.0,0.091926]
[1725737374823,0.4351224,54395.0,54394.0,0.091926]
[1725737375025,0.25135162,54395.0,54394.0,0.091926]
[1725737375320,0.43511863,54395.0,54394.0,0.091926]
[1725737375523,0.25135162,54395.0,54394.0,0.091926]
[1725737375822,0.43511863,54395.0,54394.0,0.091926]
[1725737376124,0.25135162,54395.0,54394.0,0.091926]
[1725737379424,0.194924,54395.0,54394.0,0.091926]
[1725737389518,0.194924,54395.0,54393.0,0.77294526]
[1725737389519,0.091926,54394.0,54393.0,0.77294526]
[1725737389722,0.091926,54394.0,54393.0,0.77202526]
[1725737389929,0.091926,54394.0,54393.0,0.86395326]
[1725737390328,0.008,54395.0,54394.0,0.183852]
[1725737390628,0.008,54395.0,54394.0,0.737646]
[1725737390832,0.008,54395.0,54394.0,1.385646]
[1725737391022,0.003,54395.0,54394.0,1.385646]
[1725737391823,0.091914,54401.0,54400.0,0.091916]
[1725737392025,0.091914,54401.0,54400.0,0.191916]
[1725737392629,0.091914,54401.0,54400.0,0.091916]
[1725737393226,0.102914,54401.0,54400.0,0.092916]
[1725737393930,0.113914,54401.0,54400.0,0.093916]
[1725737394432,0.17033689,54401.0,54400.0,0.093916]
[1725737394628,0.27033689,54401.0,54400.0,0.093916]
[1725737395523,0.27033689,54401.0,54400.0,0.002]
[1725737397024,0.27033873,54401.0,54400.0,0.002]
[1725737398735,0.36813569,54401.0,54400.0,0.002]
[1725737399523,0.30220598,54401.0,54400.0,0.002]
[1725737399733,0.27033873,54401.0,54400.0,0.002]
[1725737400126,0.36225273,54401.0,54400.0,0.002]
[1725737400439,0.091935,54389.0,54383.0,0.1]
[1725737400732,0.091935,54389.0,54383.0,0.091945]
[1725737400733,0.20218393,54384.0,54383.0,0.091945]
[1725737400936,0.20218393,54384.0,54383.0,0.691945]
[1725737401232,0.091935,54389.0,54383.0,1.15164]
[1725737401427,0.091935,54389.0,54379.0,0.1435]
[1725737401428,0.091935,54389.0,54388.0,0.091936]
[1725737401622,0.092935,54389.0,54388.0,0.091936]
[1725737403433,0.092935,54389.0,54388.0,0.14699066]
[1725737403938,0.091935,54389.0,54388.0,0.15199066]
[1725737405139,0.091935,54389.0,54388.0,0.096936]
[1725737406632,0.091935,54389.0,54388.0,0.12979754]
[1725737419948,0.18387,54389.0,54388.0,0.06011184]
[1725737420138,0.18387,54389.0,54388.0,0.005]
[1725737421052,0.18387,54389.0,54388.0,0.003]
[1725737421254,0.18387,54389.0,54388.0,0.005]
[1725737422755,0.18387,54389.0,54388.0,0.002]
[1725737423050,0.18887,54389.0,54388.0,0.002]
[1725737423258,0.096935,54389.0,54388.0,0.002]
[1725737423455,0.089939,54388.0,54387.0,0.091937]
[1725737424441,0.1463759,54388.0,54387.0,0.091937]
[1725737424642,0.1503759,54388.0,54387.0,0.091937]
[1725737426148,0.1543759,54388.0,54387.0,0.091937]
[1725737428245,0.15437593,54388.0,54387.0,0.091937]
[1725737431560,0.097939,54388.0,54387.0,0.091937]
[1725737436160,0.097939,54388.0,54387.0,0.14701455]
[1725737439357,0.097939,54388.0,54387.0,0.091937]
[1725737439659,0.15437585,54388.0,54387.0,0.091937]
[1725737440960,0.091944,54385.0,54384.0,0.091943]
[1725737441155,0.191944,54385.0,54384.0,0.091943]
[1725737441363,0.24838085,54385.0,54384.0,0.091943]
[1725737441755,0.24838085,54385.0,54373.0,0.0471]
[1725737441756,0.15643685,54385.0,54373.0,0.0471]
[1725737441953,0.1,54374.0,54366.0,0.1]
[1725737442151,0.18369071,54369.0,54368.0,0.09197]
[1725737442351,0.20204264,54369.0,54368.0,0.09197]
[1725737442561,0.05643685,54369.0,54368.0,0.64377]
[1725737442862,0.25847949,54369.0,54368.0,0.64377]
[1725737443454,0.05643685,54369.0,54368.0,0.09197]
[1725737443654,0.05645061,54371.0,54368.0,0.5588]
[1725737443954,0.05645061,54370.0,54369.0,0.091968]
[1725737444153,0.05645061,54371.0,54368.0,0.007]
[1725737444456,0.05645061,54370.0,54368.0,0.007]
[1725737444758,0.05645077,54369.0,54368.0,0.007]
[1725737444961,0.0564508,54371.0,54370.0,0.091967]
[1725737445153,0.05645091,54371.0,54370.0,0.091967]
[1725737446359,0.20180908,54374.0,54373.0,0.091962]
[1725737446559,0.20180908,54375.0,54374.0,0.09196]
[1725737446857,0.09195,54380.0,54374.0,0.1]
[1725737447163,0.09195,54380.0,54377.0,0.1]
[1725737447973,0.09195,54380.0,54379.0,0.091951]
[1725737449468,0.09195,54380.0,54379.0,0.092951]
[1725737450162,0.09495,54380.0,54379.0,0.12478637]
[1725737450759,0.09895,54380.0,54379.0,0.12478637]
[1725737458672,0.19895,54380.0,54379.0,0.03283537]
[1725737458858,0.091955,54377.0,54376.0,0.091956]
[1725737459771,0.091955,54377.0,54376.0,0.12564508]
[1725737460156,0.092955,54377.0,54376.0,0.12564508]
[1725737460469,0.092955,54377.0,54376.0,0.12664508]
[1725737463273,0.001,54377.0,54376.0,0.22664508]
[1725737465367,0.05744385,54377.0,54376.0,0.77836508]
[1725737465566,0.05744385,54377.0,54376.0,0.87032108]
[1725737465870,0.001,54377.0,54376.0,1.37032108]
[1725737466071,0.001,54377.0,54376.0,0.12664508]
[1725737466270,0.001,54377.0,54376.0,0.22664508]
[1725737468872,0.091938,54387.0,54376.0,0.22664508]
[1725737469069,0.091938,54387.0,54386.0,0.1]
[1725737469376,0.1,54393.0,54387.0,0.091937]
[1725737469572,0.091935,54389.0,54387.0,0.091937]
[1725737470170,0.091935,54389.0,54388.0,0.091936]
[1725737471073,0.05,54390.0,54389.0,0.091934]
[1725737471274,0.004,54390.0,54389.0,0.091934]
[1725737471474,0.004,54390.0,54389.0,0.689694]
[1725737471779,0.004,54390.0,54389.0,1.289694]
[1725737471969,0.00208,54390.0,54389.0,1.381628]
[1725737472165,0.0452,54401.0,54399.0,0.091916]
[1725737472372,0.0452,54401.0,54400.0,0.091916]
[1725737473580,0.0592,54401.0,54400.0,0.092916]
[1725737474672,0.0592,54401.0,54400.0,0.12612488]
[1725737474880,0.014,54401.0,54400.0,0.12612488]
[1725737475470,0.027,54401.0,54400.0,0.12712488]
[1725737478973,0.027,54401.0,54400.0,0.31712488]
[1725737484375,0.08341741,54401.0,54400.0,0.40904088]
[1725737484676,0.08341741,54401.0,54400.0,0.96052088]
[1725737485182,0.027,54401.0,54400.0,0.96052088]
[1725737489196,0.027,54401.0,54400.0,1.65243688]
[1725737492379,0.0485,54410.0,54409.0,0.091901]
[1725737492580,0.0476,54411.0,54409.0,0.091901]
[1725737492581,0.0476,54411.0,54410.0,0.183798]
[1725737493180,0.0476,54411.0,54410.0,0.091899]
[1725737494187,0.0586,54411.0,54410.0,0.092899]
[1725737495988,0.0586,54411.0,54410.0,0.193899]
[1725737498689,0.0586,54411.0,54410.0,0.22699781]
[1725737498690,0.11500612,54411.0,54410.0,0.22699781]
[1725737501296,0.11500612,54411.0,54410.0,0.12699781]
[1725737501297,0.24204401,54411.0,54410.0,0.12699781]
[1725737501487,0.11500733,54411.0,54410.0,0.12699781]
[1725737505491,0.0586,54411.0,54410.0,0.12699781]
[1725737512400,0.0586,54411.0,54410.0,0.03509881]
[1725737512401,0.150497,54411.0,54410.0,0.03509881]
[1725737512806,0.150497,54411.0,54410.0,0.12699781]
[1725737513707,0.2728225,54411.0,54410.0,0.12699781]
[1725737514293,0.2069074,54411.0,54410.0,0.12699781]
[1725737515299,0.2069074,54411.0,54410.0,0.03509881]
[1725737515497,0.2069074,54411.0,54410.0,0.13509881]
[1725737516802,0.2069074,54411.0,54410.0,0.22699781]
[1725737517301,0.20690874,54411.0,54410.0,0.22699781]
[1725737517902,1.36637174,54411.0,54405.0,0.091906]
[1725737518198,1.36637174,54411.0,54397.0,0.1]
[1725737518199,0.091912,54403.0,54397.0,0.1]
[1725737518398,0.26112684,54402.0,54400.0,0.1]
[1725737518606,0.05641174,54401.0,54400.0,0.283832]
[1725737518904,0.05641174,54401.0,54400.0,0.375748]
[1725737519095,0.18366049,54409.0,54408.0,0.091902]
[1725737519408,0.05641441,54409.0,54408.0,0.191902]
[1725737520708,0.14831541,54409.0,54408.0,0.192902]
[1725737521101,0.05641441,54409.0,54408.0,0.192902]
[1725737521297,0.12333377,54409.0,54408.0,0.193902]
[1725737521710,0.10241614,54409.0,54408.0,0.193902]
[1725737521905,0.001,54409.0,54408.0,0.193902]
[1725737522307,0.001,54409.0,54408.0,0.22686315]
[1725737523998,0.001,54409.0,54408.0,0.31686315]
[1725737525909,0.091884,54419.0,54417.0,0.091887]
[1725737526110,0.091884,54419.0,54417.0,0.281887]
[1725737526814,0.048,54420.0,54419.0,0.091884]
[1725737528917,0.21531155,54420.0,54419.0,0.12466771]
[1725737529315,0.14940381,54420.0,54419.0,0.12466771]
[1725737530117,0.14940375,54420.0,54419.0,0.12466771]
[1725737536929,0.048,54420.0,54419.0,0.12466771]
[1725737538335,0.048,54420.0,54419.0,0.31466771]
[1725737542022,0.09299806,54420.0,54419.0,0.31466771]
[1725737543922,0.09299806,54420.0,54419.0,0.22466771]
[1725737548423,0.18695012,54420.0,54419.0,0.22466771]
[1725737549337,0.13054886,54420.0,54419.0,0.22466771]
[1725737549531,0.14939916,54420.0,54419.0,0.22466771]
[1725737549829,0.09299806,54420.0,54419.0,0.22466771]
[1725737550339,0.14939843,54420.0,54419.0,0.22466771]
[1725737550524,0.09299733,54420.0,54419.0,0.22466771]
[1725737551929,0.14939845,54420.0,54419.0,0.22466771]
[1725737555122,0.14939843,54420.0,54419.0,0.22466771]
[1725737558432,0.10139843,54420.0,54419.0,0.22466771]
[1725737558727,0.10139843,54420.0,54419.0,0.31655171]
[1725737558930,0.2387296,54424.0,54423.0,0.091877]
[1725737559237,0.091869,54428.0,54426.0,0.091871]
[1725737559528,0.04499566,54427.0,54426.0,0.091871]
[1725737559932,0.04499566,54427.0,54426.0,0.191871]
[1725737560837,0.04499566,54427.0,54426.0,0.192871]
[1725737561537,0.04499566,54427.0,54426.0,0.193871]
[1725737562137,0.10139427,54427.0,54426.0,0.193871]
[1725737562339,0.04499566,54427.0,54426.0,0.193871]
[1725737562634,0.26679204,54427.0,54426.0,0.193871]
[1725737562841,0.26679204,54427.0,54426.0,0.22724142]
[1725737562842,0.10139427,54427.0,54426.0,0.22724142]
[1725737563037,0.26679204,54427.0,54426.0,0.22724142]
[1725737565344,0.30427286,54427.0,54426.0,0.22724142]
[1725737566439,0.30427286,54427.0,54426.0,0.12724142]
[1725737566440,0.39614286,54427.0,54426.0,0.12724142]
[1725737567033,0.23074509,54427.0,54426.0,0.12724142]
[1725737567831,0.69007509,54427.0,54416.0,0.1]
[1725737568031,0.16537011,54418.0,54417.0,0.091887]
[1725737568235,0.28513851,54420.0,54419.0,0.091884]
[1725737568545,0.42694434,54420.0,54419.0,0.091884]
[1725737570140,0.42794434,54420.0,54419.0,0.091884]
[1725737570446,0.42794468,54420.0,54419.0,0.091884]
[1725737570747,0.46418903,54420.0,54419.0,0.091884]
[1725737571244,0.46618903,54420.0,54419.0,0.091884]
[1725737571635,0.22604243,54420.0,54414.0,0.03286534]
[1725737571845,0.22604243,54420.0,54410.0,0.091899]
[1725737571846,0.091899,54411.0,54410.0,0.091899]
[1725737572145,0.091899,54411.0,54404.0,0.1]
[1725737572146,0.091901,54409.0,54407.0,0.1]
[1725737572445,0.09251008,54411.0,54404.0,0.1]
[1725737572446,0.036106,54408.0,54404.0,0.1]
[1725737572645,0.091911,54403.0,54400.0,0.1253005]
[1725737572843,0.034106,54402.0,54400.0,0.091915]
[1725737573043,0.091918,54399.0,54391.0,0.0914]
[1725737573249,0.1,54396.0,54394.0,0.091925]
[1725737573547,0.05642339,54398.0,54394.0,0.091925]
[1725737573548,0.0461,54395.0,54394.0,0.091925]
[1725737573747,0.1461,54395.0,54394.0,0.091925]
[1725737573947,0.20252705,54395.0,54394.0,0.091925]
[1725737574540,0.29445105,54395.0,54391.0,0.03276989]
[1725737574746,0.1,54392.0,54391.0,0.09193]
[1725737575051,0.091933,54390.0,54386.0,0.091938]
[1725737575253,0.15643051,54389.0,54386.0,0.091938]
[1725737575558,0.091933,54390.0,54386.0,0.091938]
[1725737575559,0.05143051,54388.0,54386.0,0.091938]
[1725737575733,0.091933,54390.0,54386.0,0.091938]
[1725737576142,0.091933,54390.0,54386.0,0.092938]
[1725737576343,0.098,54387.0,54386.0,0.092938]
[1725737576539,0.1,54387.0,54382.0,0.03274672]
[1725737576845,0.1,54383.0,54377.0,0.1]
[1725737577048,0.20117768,54378.0,54377.0,0.1]
[1725737577246,0.20117768,54378.0,54377.0,0.191955]
[1725737577551,0.20084655,54381.0,54377.0,0.191955]
[1725737577742,0.20084655,54381.0,54378.0,0.091953]
[1725737578246,0.19884655,54381.0,54378.0,0.091953]
[1725737578451,0.1823992,54380.0,54378.0,0.091953]
[1725737578645,0.1823992,54381.0,54378.0,0.091953]
[1725737579141,0.1823992,54380.0,54378.0,0.091953]
[1725737579338,0.1823992,54379.0,54378.0,0.091953]
[1725737579641,0.001,54381.0,54378.0,0.091953]
[1725737579642,0.1823992,54380.0,54378.0,0.091953]
[1725737580046,0.1853992,54381.0,54378.0,0.091953]
[1725737580252,0.1833992,54381.0,54378.0,0.091953]
[1725737580549,0.05844373,54380.0,54378.0,0.091953]
[1725737580745,0.05644373,54379.0,54378.0,0.091953]
[1725737581646,0.003,54380.0,54378.0,0.091953]
[1725737581847,0.05644357,54379.0,54378.0,0.091953]
[1725737582042,0.003,54380.0,54378.0,0.091953]
[1725737582241,0.001,54379.0,54378.0,0.091953]
[1725737583743,0.001,54379.0,54376.0,0.03245877]
[1725737583945,0.19,54379.0,54373.0,0.09196]
[1725737584138,0.091959,54375.0,54370.0,0.0467]
[1725737584451,0.091959,54375.0,54370.0,0.07903143]
[1725737584847,0.140659,54375.0,54370.0,0.07903143]
[1725737585040,0.140659,54375.0,54373.0,0.09696]
[1725737585946,0.140659,54375.0,54373.0,0.09196]
[1725737587149,0.142659,54375.0,54373.0,0.09196]
[1725737587338,0.143659,54375.0,54373.0,0.09196]
[1725737588156,0.143659,54375.0,54374.0,0.09196]
[1725737589640,0.144659,54375.0,54374.0,0.09196]
[1725737591345,0.145659,54375.0,54374.0,0.09196]
[1725737593951,0.145659,54375.0,54370.0,0.07903143]
[1725737593952,0.091965,54371.0,54370.0,0.03233143]
[1725737594149,0.091968,54370.0,54362.0,0.3569791]
[1725737594455,0.091968,54369.0,54362.0,0.3569791]
[1725737594956,0.0454,54374.0,54367.0,0.09197]
[1725737594957,0.09197,54368.0,54367.0,0.09197]
[1725737595940,0.091977,54364.0,54363.0,0.091978]
[1725737596147,0.091977,54364.0,54362.0,0.40181797]
[1725737596148,0.091978,54363.0,54362.0,0.3669791]
[1725737596344,0.187978,54363.0,54362.0,0.01]
[1725737596654,0.091982,54361.0,54360.0,0.091983]
[1725737596949,0.04596001,54361.0,54360.0,0.091983]
[1725737597747,0.096,54363.0,54360.0,0.091983]
[1725737598450,0.096,54363.0,54362.0,0.005]
[1725737598451,0.188978,54363.0,54362.0,0.005]
[1725737598848,0.187978,54363.0,54362.0,0.001]
[1725737599445,0.188978,54363.0,54362.0,0.001]
[1725737599655,0.09198,54362.0,54360.0,0.091983]
[1725737600453,0.002,54363.0,54360.0,0.19]
[1725737600650,0.002,54363.0,54362.0,0.09198]
[1725737600947,0.002,54363.0,54362.0,0.14701865]
[1725737601453,0.002,54363.0,54362.0,0.09198]
[1725737601758,0.091972,54367.0,54363.0,0.091977]
[1725737601957,0.091972,54367.0,54365.0,0.14686925]
[1725737602153,0.091972,54367.0,54366.0,0.05489425]
[1725737602547,0.091972,54367.0,54366.0,0.07319234]
[1725737603257,0.095972,54367.0,54366.0,0.07319234]
[1725737603460,0.095972,54367.0,54365.0,0.18391364]
[1725737604158,0.095972,54367.0,54365.0,0.091975]
[1725737604749,0.098972,54367.0,54365.0,0.091975]
[1725737604953,0.094972,54367.0,54365.0,0.091975]
[1725737605157,0.097972,54367.0,54365.0,0.091975]
[1725737605358,0.096972,54367.0,54365.0,0.091975]
[1725737605568,0.096972,54367.0,54366.0,0.091973]
[1725737605856,0.005,54367.0,54366.0,0.091973]
[1725737606661,0.002,54367.0,54366.0,0.091973]
[1725737606961,0.006,54367.0,54366.0,0.091973]
[1725737607550,0.097972,54367.0,54366.0,0.091973]
[1725737607952,0.098972,54367.0,54366.0,0.091973]
[1725737612147,0.098972,54367.0,54366.0,0.1653194]
[1725737612749,0.007,54367.0,54366.0,0.1653194]
[1725737613149,0.007,54367.0,54366.0,0.091973]
[1725737613555,0.007,54367.0,54366.0,0.141473]
[1725737613955,0.007,54367.0,54366.0,0.47357662]
[1725737614154,0.007,54367.0,54366.0,0.49196435]
[1725737614359,0.007,54367.0,54366.0,0.38163798]
[1725737615258,0.138258,54375.0,54374.0,0.09196]
[1725737616557,0.091958,54375.0,54374.0,0.09196]
[1725737616759,0.103958,54375.0,54374.0,0.09296]
[1725737617358,0.103958,54375.0,54374.0,0.16637637]
[1725737617658,0.114958,54375.0,54374.0,0.16737637]
[1725737619149,0.114958,54375.0,54374.0,0.09396]
[1725737622368,0.114958,54375.0,54374.0,0.12781085]
[1725737623458,0.114958,54375.0,54374.0,0.09396]
[1725737624264,0.15999401,54375.0,54374.0,0.09396]
[1725737626763,0.15999401,54375.0,54374.0,0.002]
[1725737626966,0.114958,54375.0,54374.0,0.002]
[1725737636576,0.114958,54375.0,54374.0,0.09396]
[1725737639077,0.14330999,54375.0,54374.0,0.09396]
[1725737641271,0.24479682,54375.0,54374.0,0.09396]
[1725737642578,0.44462211,54375.0,54374.0,0.09396]
[1725737643276,0.24479682,54375.0,54374.0,0.09396]
[1725737644280,0.19976026,54375.0,54374.0,0.09396]
[1725737644674,0.29155776,54375.0,54374.0,0.09396]
[1725737644876,0.06803465,54375.0,54374.0,0.09396]
[1725737646775,0.06803493,54375.0,54374.0,0.09396]
[1725737648079,0.023,54375.0,54374.0,0.09396]
[1725737648274,0.12448322,54375.0,54374.0,0.09396]
[1725737649384,0.023,54375.0,54374.0,0.09396]
[1725737651569,0.023,54375.0,54374.0,0.16752433]
[1725737653985,0.114958,54375.0,54374.0,0.16752433]
[1725737655774,0.114958,54375.0,54374.0,0.09396]
[1725737660494,0.114958,54375.0,54374.0,0.16752433]
[1725737660881,0.114958,54375.0,54374.0,0.09396]
[1725737661082,0.14249566,54375.0,54374.0,0.09396]
[1725737662680,0.14249566,54375.0,54374.0,0.16752433]
[1725737663280,0.14249566,54375.0,54374.0,0.09396]
[1725737664188,0.13149566,54375.0,54374.0,0.09296]
[1725737664387,0.39107577,54375.0,54374.0,0.09296]
[1725737665190,0.15040729,54375.0,54374.0,0.09196]
[1725737666989,0.093958,54375.0,54374.0,0.09196]
[1725737667189,0.15040729,54375.0,54374.0,0.09196]
[1725737667892,0.27809145,54375.0,54374.0,0.09196]
[1725737668099,0.46187561,54375.0,54374.0,0.09196]
[1725737668298,0.43419145,54375.0,54374.0,0.09196]
[1725737668792,0.25040729,54375.0,54374.0,0.09196]
[1725737670087,0.091963,54373.0,54360.0,0.091982]
[1725737670287,0.1,54364.0,54363.0,0.091978]
[1725737671402,0.1,54364.0,54363.0,0.23214254]
[1725737672109,0.1,54364.0,54363.0,0.23314254]
[1725737674299,0.191977,54364.0,54363.0,0.23314254]
[1725737674494,0.191977,54364.0,54363.0,0.32505751]
[1725737676801,0.191977,54364.0,54363.0,0.18489297]
[1725737678107,0.091977,54364.0,54363.0,0.18489297]
[1725737678603,0.091977,54364.0,54363.0,0.092978]
[1725737689094,0.091977,54364.0,54363.0,0.095978]
[1725737690999,0.091977,54364.0,54363.0,0.092978]
[1725737694507,0.14843364,54364.0,54363.0,0.092978]
[1725737695615,0.091977,54364.0,54363.0,0.092978]
[1725737695814,0.14843362,54364.0,54363.0,0.092978]
[1725737696111,0.091977,54364.0,54363.0,0.092978]
[1725737696500,0.14843356,54364.0,54363.0,0.092978]
[1725737697213,0.20489012,54364.0,54363.0,0.092978]
[1725737697400,0.14843356,54364.0,54363.0,0.095978]
[1725737698408,0.14843356,54364.0,54363.0,0.092978]
[1725737701014,0.091977,54364.0,54363.0,0.092978]
[1725737701221,0.14843356,54364.0,54363.0,0.092978]
[1725737701409,0.091977,54364.0,54363.0,0.092978]
[1725737701713,0.091959,54375.0,54374.0,0.091958]
[1725737701912,0.091949,54381.0,54378.0,0.091952]
[1725737702109,0.094,54384.0,54378.0,0.14716071]
[1725737702315,0.091949,54381.0,54378.0,0.14716071]
[1725737702811,0.091949,54381.0,54379.0,0.05520871]
[1725737703006,0.09195,54380.0,54379.0,0.05520871]
[1725737703206,0.09195,54380.0,54378.0,0.091952]
[1725737703207,0.091951,54379.0,54378.0,0.05520871]
[1725737703412,0.091953,54378.0,54377.0,0.05520871]
[1725737703606,0.182906,54378.0,54377.0,0.05520871]
[1725737703802,0.091955,54377.0,54376.0,0.05520871]
[1725737704015,0.091956,54376.0,54375.0,0.05520871]
[1725737704213,0.090956,54376.0,54375.0,0.05520871]
[1725737704813,0.089956,54376.0,54375.0,0.05520871]
[1725737705205,0.088956,54376.0,54375.0,0.05520871]
[1725737706021,0.092956,54376.0,54375.0,0.05520871]
[1725737707226,0.097956,54376.0,54375.0,0.05520871]
[1725737707418,0.091958,54375.0,54374.0,0.05520871]
[1725737708617,0.094958,54375.0,54374.0,0.05520871]
[1725737708918,0.097958,54375.0,54374.0,0.05520871]
[1725737709515,0.09196,54374.0,54373.0,0.091961]
[1725737709717,0.14840994,54374.0,54373.0,0.091961]
[1725737711918,0.09196,54374.0,54373.0,0.091961]
[1725737712119,0.09596,54374.0,54373.0,0.091961]
[1725737713118,0.004,54374.0,54373.0,0.091961]
[1725737717022,0.06044848,54374.0,54373.0,0.091961]
[1725737717425,0.20597634,54374.0,54373.0,0.091961]
[1725737717928,0.26242482,54374.0,54373.0,0.091961]
[1725737719126,0.06044848,54374.0,54373.0,0.091961]
[1725737720829,0.06044773,54374.0,54373.0,0.091961]
[1725737721727,0.05644773,54374.0,54373.0,0.101961]
[1725737722418,0.20197634,54374.0,54373.0,0.101961]
[1725737722624,0.20197634,54374.0,54373.0,0.099961]
[1725737723224,0.05644669,54374.0,54373.0,0.099962]
[1725737724528,0.20203951,54375.0,54374.0,0.09196]
[1725737724731,0.091952,54379.0,54378.0,0.091953]
[1725737726429,0.093952,54379.0,54378.0,0.091953]
[1725737727126,0.095952,54379.0,54378.0,0.091953]
[1725737727930,0.091958,54376.0,54372.0,0.03316009]
[1725737728235,0.1409,54375.0,54370.0,0.15520871]
[1725737728629,0.1409,54375.0,54371.0,0.05520871]
[1725737728934,0.1409,54375.0,54374.0,0.09196]
[1725737731128,0.232858,54375.0,54374.0,0.09196]
[1725737731327,0.232858,54375.0,54374.0,0.09496]
[1725737731528,0.28930608,54375.0,54374.0,0.09696]
[1725737732322,0.28930608,54375.0,54374.0,0.09396]
[1725737732528,0.28930608,54375.0,54374.0,0.09696]
[1725737733236,0.28930608,54375.0,54374.0,0.09596]
[1725737734131,0.28930608,54375.0,54374.0,0.09396]
[1725737735029,0.28930608,54375.0,54374.0,0.12664022]
[1725737738438,0.28930608,54375.0,54374.0,0.12464022]
[1725737739632,0.232858,54375.0,54374.0,0.12464022]
[1725737750336,0.091944,54384.0,54383.0,0.091945]
[1725737750636,0.091944,54384.0,54383.0,0.191945]
[1725737750833,0.091938,54387.0,54385.0,0.091941]
[1725737751033,0.091938,54387.0,54386.0,0.09194]
[1725737751448,0.0484,54392.0,54386.0,0.1]
[1725737751647,0.0484,54392.0,54383.0,0.001]
[1725737751648,0.0484,54400.0,54390.0,0.1]
[1725737751836,0.0484,54400.0,54385.0,0.14714871]
[1725737751837,0.02940236,54399.0,54397.0,0.1]
[1725737752038,0.049,54402.0,54400.0,0.091915]
[1725737752240,0.049,54402.0,54401.0,0.191914]
[1725737753442,0.058,54402.0,54401.0,0.192914]
[1725737754652,0.12642157,54402.0,54401.0,0.192914]
[1725737755344,0.12542157,54402.0,54401.0,0.193914]
[1725737758053,0.27022567,54402.0,54401.0,0.193914]
[1725737758249,0.32664724,54402.0,54401.0,0.193914]
[1725737758659,0.12542157,54402.0,54401.0,0.193914]
[1725737759650,0.12542157,54402.0,54401.0,0.093914]
[1725737761261,0.11442157,54402.0,54401.0,0.092914]
[1725737761456,0.12242157,54402.0,54401.0,0.093914]
[1725737761657,0.066,54402.0,54401.0,0.093914]
[1725737761853,0.157912,54402.0,54401.0,0.002]
[1725737762058,0.257912,54402.0,54401.0,0.002]
[1725737762959,0.256912,54402.0,54401.0,0.002]
[1725737766257,0.38137701,54402.0,54401.0,0.002]
[1725737766459,0.091936,54389.0,54388.0,0.091935]
[1725737766956,0.1,54390.0,54385.0,0.091941]
[1725737767161,0.0485,54388.0,54385.0,0.091941]
[1725737767551,0.1485,54388.0,54385.0,0.091941]
[1725737767749,0.1415,54388.0,54385.0,0.091941]
[1725737767959,0.091944,54384.0,54381.0,0.191947]
[1725737768453,0.091944,54384.0,54382.0,0.091946]
[1725737769663,0.05643779,54383.0,54382.0,0.091946]
[1725737770152,0.14838279,54383.0,54382.0,0.091946]
[1725737770559,0.14838279,54383.0,54382.0,0.093946]
[1725737771264,0.14838279,54383.0,54382.0,0.091946]
[1725737771463,0.14938279,54383.0,54382.0,0.091946]
[1725737771659,0.15038279,54383.0,54382.0,0.091946]
[1725737772865,0.14938279,54383.0,54382.0,0.091946]
[1725737773767,0.15038279,54383.0,54382.0,0.091946]
[1725737775760,0.05843779,54383.0,54382.0,0.091946]
[1725737776557,0.002,54383.0,54382.0,0.091946]
[1725737781360,0.091946,54382.0,54381.0,0.03250074]